Workbook

Sheet 2014
A2: Appendix 2-N
A3: Shared Services and Corporate Cost Allocation
B5: Year: | C5: 2014
A7: Shared Services
A9: Name of Company | C9: Service Offered | D9: Pricing Methodology | E9: Price for the Service | F9: Cost for the Service
A10: From | B10: To
E11: $ | F11: $
A12: HOI | B12: All subs | C12: General Counsel & Secretary (including Corporate Exec Office) | D12: CCC Allocation Model | E12: 793.278429 | F12: 793.278429
A13: HOI | B13: All subs | C13: President/CEO/Chairman/Board | D13: CCC Allocation Model | E13: 3518.506228 | F13: 3518.506228
A14: HOI | B14: All subs | C14: Chief Financial Office Services (Including Strategic Financial Services) | D14: CCC Allocation Model | E14: 968.4954384 | F14: 968.4954384
A15: HONI | B15: All subs and HOI | C15: General Counsel & Secretary | D15: CCC Allocation Model | E15: 32330.62716 | F15: 32330.62716
A16: HONI | B16: All subs and HOI | C16: Financial Services | D16: CCC Allocation Model | E16: 38056.1562 | F16: 38056.1562
A17: HONI | B17: All subs and HOI | C17: Corporate Services | D17: CCC Allocation Model | E17: 188081.3127 | F17: 188081.3127
A18: HONI | B18: All subs and HOI | C18: Telecommunication Services | D18: CCC Allocation Model | E18: 18460.31212 | F18: 18460.31212
A19: HONI | B19: All subs and HOI | C19: Other Services | D19: CCC Allocation Model | E19: 124297.573 | F19: 124297.573
A20: Remotes Services | B20: HONI | C20: Metering and Lines Services | D20: CCC Allocation Model | E20: 0 | F20: 0
A22: Corporate Cost Allocation
A24: Name of Company | C24: Service Offered | D24: Pricing Methodology | E24: % of Corporate Costs Allocated | F24: Amount Allocated
A25: From | B25: To
E26: % | F26: $
A27: HOI | B27: HONI Dx | C27: General Counsel & Secretary | D27: CCC Allocation Model | E27: 0.4257607479 | F27: 347
A28: =A27 -> HOI | B28: =B27 -> HONI Dx | C28: President/CEO/Chairman /Board | D28: CCC Allocation Model | E28: 0.3301519817 | F28: 1594
A29: =A28 -> HOI | B29: =B28 -> HONI Dx | C29: Chief Financial Office Services | D29: CCC Allocation Model | E29: 0.5789540875 | F29: 426
A30: HOI | B30: HONI Tx | C30: =C27 -> General Counsel & Secretary | D30: CCC Allocation Model | E30: 0.4920174637 | F30: 401
A31: HOI | B31: =B30 -> HONI Tx | C31: President/CEO/Chairman /Board | D31: CCC Allocation Model | E31: 0.381518162 | F31: 1842
A32: HOI | B32: =B31 -> HONI Tx | C32: Chief Financial Office Services | D32: CCC Allocation Model | E32: 0.6686511997 | F32: 492
A33: HOI | B33: Telecom | C33: General Counsel & Secretary | D33: CCC Allocation Model | E33: 0.0101010101 | F33: 8.232441629
A34: HOI | B34: =B33 -> Telecom | C34: President/CEO/Chairman /Board | D34: CCC Allocation Model | E34: 0.005830523765 | F34: 28.15023201
A35: HOI | B35: =B34 -> Telecom | C35: Chief Financial Office Services | D35: CCC Allocation Model | E35: 0.0226795719 | F35: 16.68784768
A36: HOI | B36: Remotes | C36: General Counsel & Secretary | D36: CCC Allocation Model | E36: 0.02525252525 | F36: 20.58110407
A37: HOI | B37: =B36 -> Remotes | C37: President/CEO/Chairman /Board | D37: CCC Allocation Model | E37: 0.003907151383 | F37: 18.86403732
A38: HOI | B38: =B37 -> Remotes | C38: Chief Financial Office Services | D38: CCC Allocation Model | E38: 0.01123530499 | F38: 8.267045746
A39: HOI | B39: B2M | C39: General Counsel & Secretary | D39: CCC Allocation Model | E39: 0 | F39: 0
A40: HOI | B40: =B39 -> B2M | C40: President/CEO/Chairman /Board | D40: CCC Allocation Model | E40: 0 | F40: 0
A41: HOI | B41: =B40 -> B2M | C41: Chief Financial Office Services | D41: CCC Allocation Model | E41: 0 | F41: 0
A42: HOI | B42: Hydro One SSM | C42: General Counsel & Secretary | D42: CCC Allocation Model | E42: 0 | F42: 0
A43: HOI | B43: =B42 -> Hydro One SSM | C43: President/CEO/Chairman /Board | D43: CCC Allocation Model | E43: 0 | F43: 0
A44: HOI | B44: =B43 -> Hydro One SSM | C44: Chief Financial Office Services | D44: CCC Allocation Model | E44: 0 | F44: 0
A45: HOI | B45: Brampton | C45: General Counsel & Secretary | D45: CCC Allocation Model | E45: 0.0202020202 | F45: 16.46488326
A46: HOI | B46: =B45 -> Brampton | C46: President/CEO/Chairman /Board | D46: CCC Allocation Model | E46: 0.007351154587 | F46: 35.49195844
A47: HOI | B47: =B46 -> Brampton | C47: Chief Financial Office Services | D47: CCC Allocation Model | E47: 0.03471080491 | F47: 25.54054494
A48: HONI | B48: HONI Dx | C48: General Counsel & Secretary | D48: CCC Allocation Model | E48: 0.5205025031 | F48: 16813 | J48: =E48+E53+E58+E63+E68+E73+E78 -> 0.9710618619
A49: =A48 -> HONI | B49: =B48 -> HONI Dx | C49: Financial Services | D49: CCC Allocation Model | E49: 0.411471924 | F49: 11760 | J49: =E49+E54+E59+E64+E69+E74+E79 -> 0.9980526015
A50: =A49 -> HONI | B50: HONI Dx | C50: Corporate Services | D50: CCC Allocation Model | E50: 0.4833286885 | F50: 79832 | J50: 1
A51: HONI | B51: HONI Dx | C51: Telecommunication Services | D51: CCC Allocation Model | E51: 0.4752732875 | F51: 8317 | J51: 1
A52: HONI | B52: HONI Dx | C52: Other Services | D52: CCC Allocation Model | E52: 0.7039214025 | F52: 90781 | J52: 1
A53: HONI | B53: HONI Tx | C53: General Counsel & Secretary | D53: CCC Allocation Model | E53: 0.4335182495 | F53: 14871
A54: =A53 -> HONI | B54: =B53 -> HONI Tx | C54: Financial Services | D54: CCC Allocation Model | E54: 0.5627561898 | F54: 25415
A55: =A54 -> HONI | B55: HONI Tx | C55: Corporate Services | D55: CCC Allocation Model | E55: 0.513299847 | F55: 107610
A56: HONI | B56: HONI Tx | C56: Telecommunication Services | D56: CCC Allocation Model | E56: 0.5013636173 | F56: 9746
A57: HONI | B57: HONI Tx | C57: Other Services | D57: CCC Allocation Model | E57: 0.2853471762 | F57: 32070
A58: HONI | B58: Telecom | C58: General Counsel & Secretary | D58: CCC Allocation Model | E58: 0.003124193389 | F58: 101.226061
A59: =A58 -> HONI | B59: =B58 -> Telecom | C59: Financial Services | D59: CCC Allocation Model | E59: 0.01439134181 | F59: 413.8090703
A60: =A59 -> HONI | B60: Telecom | C60: Corporate Services | D60: CCC Allocation Model | E60: 0.001294629321 | F60: 308.198941
A61: HONI | B61: Telecom | C61: Telecommunication Services | D61: CCC Allocation Model | E61: 0.015625 | F61: 271.9854765
A62: HONI | B62: Telecom | C62: Other Services | D62: CCC Allocation Model | E62: 0.008433724939 | F62: 1085.597962
A63: HONI | B63: Remotes | C63: General Counsel & Secretary | D63: CCC Allocation Model | E63: 0.01173086094 | F63: 342.948975
A64: =A63 -> HONI | B64: =B63 -> Remotes | C64: Financial Services | D64: CCC Allocation Model | E64: 0.006646975903 | F64: 210.9380535
A65: =A64 -> HONI | B65: Remotes | C65: Corporate Services | D65: CCC Allocation Model | E65: 0.001284548782 | F65: 297.4143386
A66: HONI | B66: Remotes | C66: Telecommunication Services | D66: CCC Allocation Model | E66: 0.007738095238 | F66: 125.3266411
A67: HONI | B67: Remotes | C67: Other Services | D67: CCC Allocation Model | E67: 0.002297696392 | F67: 359.1386459
A68: HONI | B68: B2M | C68: General Counsel & Secretary | D68: CCC Allocation Model | E68: 0 | F68: 0
A69: =A68 -> HONI | B69: =B68 -> B2M | C69: Financial Services | D69: CCC Allocation Model | E69: 0 | F69: 0
A70: =A69 -> HONI | B70: B2M | C70: Corporate Services | D70: CCC Allocation Model | E70: 0 | F70: 0
A71: HONI | B71: B2M | C71: Telecommunication Services | D71: CCC Allocation Model | E71: 0 | F71: 0
A72: HONI | B72: B2M | C72: Other Services | D72: CCC Allocation Model | E72: 0 | F72: 0
A73: HONI | B73: Hydro One SSM | C73: General Counsel & Secretary | D73: CCC Allocation Model | E73: 0.002186054997 | F73: 0
A74: =A73 -> HONI | B74: =B73 -> Hydro One SSM | C74: Financial Services | D74: CCC Allocation Model | E74: 0.002786169995 | F74: 0
A75: =A74 -> HONI | B75: Hydro One SSM | C75: Corporate Services | D75: CCC Allocation Model | E75: 0.0007922864205 | F75: 0
A76: HONI | B76: Hydro One SSM | C76: Telecommunication Services | D76: CCC Allocation Model | E76: 0 | F76: 0
A77: HONI | B77: Hydro One SSM | C77: Other Services | D77: CCC Allocation Model | E77: 0 | F77: 0
A78: HONI | B78: Brampton | C78: General Counsel & Secretary | D78: CCC Allocation Model | E78: 0 | F78: 202.4521219
A79: =A78 -> HONI | B79: =B78 -> Brampton | C79: Financial Services | D79: CCC Allocation Model | E79: 0 | F79: 256.4090806
A80: =A79 -> HONI | B80: Brampton | C80: Corporate Services | D80: CCC Allocation Model | E80: 0 | F80: 33.69941176
A81: HONI | B81: Brampton | C81: Telecommunication Services | D81: CCC Allocation Model | E81: 0 | F81: 0
A82: HONI | B82: Brampton | C82: Other Services | D82: CCC Allocation Model | E82: 0 | F82: 1.836440251
A85: Legend | B85: "HOI" | C85: Hydro One Inc.
B86: "HONI" | C86: Hydro One Networks Inc.
B87: "Brampton" | C87: Hydro One Brampton Networks Inc.
B88: "B2M" | C88: B2M Limited Partnership
B89: "Telecom" | C89: Hydro One Telecom Inc.
B90: "Hydro One SSM" | C90: Hydro One Sault Ste. Marie LP (formerly Great Lakes Power Transmission LP)
B91: "Remotes" | C91: Hydro One Remote Communities Inc.
B92: "HONI Dx" | C92: Hydro One Distribution
B93: "HONI Tx" | C93: HONI's transmission business

Sheet 2015
A2: Appendix 2-N
A3: Shared Services and Corporate Cost Allocation
B5: Year: | C5: 2015
A7: Shared Services
A9: Name of Company | C9: Service Offered | D9: Pricing Methodology | E9: Price for the Service | F9: Cost for the Service
A10: From | B10: To
E11: $ | F11: $
A12: HOI | B12: All subs | C12: General Counsel & Secretary (including Corporate Exec Office) | D12: CCC Allocation Model | E12: 1909.566169 | F12: 1909.566169
A13: HOI | B13: All subs | C13: President/CEO/Chairman/Board | D13: CCC Allocation Model | E13: 2505.834154 | F13: 2505.834154
A14: HOI | B14: All subs | C14: Chief Financial Office Services (Including Strategic Financial Services) | D14: CCC Allocation Model | E14: 939.5810462 | F14: 939.5810462
A15: HONI | B15: All subs and HOI | C15: General Counsel & Secretary | D15: CCC Allocation Model | E15: 33395.74585 | F15: 33395.74585
A16: HONI | B16: All subs and HOI | C16: Financial Services | D16: CCC Allocation Model | E16: 41103.28779 | F16: 41103.28779
A17: HONI | B17: All subs and HOI | C17: Corporate Services | D17: CCC Allocation Model | E17: 189686.5784 | F17: 189686.5784
A18: HONI | B18: All subs and HOI | C18: Telecommunication Services | D18: CCC Allocation Model | E18: 17295.1832 | F18: 17295.1832
A19: HONI | B19: All subs and HOI | C19: Other Services | D19: CCC Allocation Model | E19: 122420.0888 | F19: 122420.0888
A20: Remotes Services | B20: HONI | C20: Metering and Lines Services | D20: CCC Allocation Model | E20: 148 | F20: 148
A22: Corporate Cost Allocation
A24: Name of Company | C24: Service Offered | D24: Pricing Methodology | E24: % of Corporate Costs Allocated | F24: Amount Allocated
A25: From | B25: To
E26: % | F26: $
A27: HOI | B27: HONI Dx | C27: General Counsel & Secretary | D27: CCC Allocation Model | E27: 0.7335201325 | F27: 852
A28: =A27 -> HOI | B28: =B27 -> HONI Dx | C28: President/CEO/Chairman /Board | D28: CCC Allocation Model | E28: 0.1585875372 | F28: 1107
A29: =A28 -> HOI | B29: =B28 -> HONI Dx | C29: Chief Financial Office Services | D29: CCC Allocation Model | E29: 0.3494554891 | F29: 402
A30: HOI | B30: HONI Tx | C30: =C27 -> General Counsel & Secretary | D30: CCC Allocation Model | E30: 0.8618000618 | F30: 1001
A31: HOI | B31: =B30 -> HONI Tx | C31: President/CEO/Chairman /Board | D31: CCC Allocation Model | E31: 0.1863797524 | F31: 1301
A32: HOI | B32: =B31 -> HONI Tx | C32: Chief Financial Office Services | D32: CCC Allocation Model | E32: 0.4111752397 | F32: 473
A33: HOI | B33: Telecom | C33: General Counsel & Secretary | D33: CCC Allocation Model | E33: 0.0101010101 | F33: 11.7325486
A34: HOI | B34: =B33 -> Telecom | C34: President/CEO/Chairman /Board | D34: CCC Allocation Model | E34: 0.005911477196 | F34: 41.26430973
A35: HOI | B35: =B34 -> Telecom | C35: Chief Financial Office Services | D35: CCC Allocation Model | E35: 0.0225855929 | F35: 25.98158744
A36: HOI | B36: Remotes | C36: General Counsel & Secretary | D36: CCC Allocation Model | E36: 0.02424242424 | F36: 28.15811665
A37: HOI | B37: =B36 -> Remotes | C37: President/CEO/Chairman /Board | D37: CCC Allocation Model | E37: 0.002986597476 | F37: 20.84756131
A38: HOI | B38: =B37 -> Remotes | C38: Chief Financial Office Services | D38: CCC Allocation Model | E38: 0.01126068515 | F38: 12.95385413
A39: HOI | B39: B2M | C39: General Counsel & Secretary | D39: CCC Allocation Model | E39: 0 | F39: 0
A40: HOI | B40: =B39 -> B2M | C40: President/CEO/Chairman /Board | D40: CCC Allocation Model | E40: 0 | F40: 0
A41: HOI | B41: =B40 -> B2M | C41: Chief Financial Office Services | D41: CCC Allocation Model | E41: 0 | F41: 0
A42: HOI | B42: Hydro One SSM | C42: General Counsel & Secretary | D42: CCC Allocation Model | E42: 0 | F42: 0
A43: HOI | B43: =B42 -> Hydro One SSM | C43: President/CEO/Chairman /Board | D43: CCC Allocation Model | E43: 0 | F43: 0
A44: HOI | B44: =B43 -> Hydro One SSM | C44: Chief Financial Office Services | D44: CCC Allocation Model | E44: 0 | F44: 0
A45: HOI | B45: Brampton | C45: General Counsel & Secretary | D45: CCC Allocation Model | E45: 0.0143565932 | F45: 16.67550332
A46: HOI | B46: =B45 -> Brampton | C46: President/CEO/Chairman /Board | D46: CCC Allocation Model | E46: 0.005117532798 | F46: 35.72228251
A47: HOI | B47: =B46 -> Brampton | C47: Chief Financial Office Services | D47: CCC Allocation Model | E47: 0.02229352566 | F47: 25.64560465
A48: HONI | B48: HONI Dx | C48: General Counsel & Secretary | D48: CCC Allocation Model | E48: 0.5205025031 | F48: 17250 | J48: =E48+E53+E58+E63+E68+E73+E78 -> 0.9688758069
A49: =A48 -> HONI | B49: =B48 -> HONI Dx | C49: Financial Services | D49: CCC Allocation Model | E49: 0.411471924 | F49: 14566 | J49: =E49+E54+E59+E64+E69+E74+E79 -> 0.9952664315
A50: =A49 -> HONI | B50: HONI Dx | C50: Corporate Services | D50: CCC Allocation Model | E50: 0.4833286885 | F50: 84359 | J50: 0.9992077136
A51: HONI | B51: HONI Dx | C51: Telecommunication Services | D51: CCC Allocation Model | E51: 0.4752732875 | F51: 7768 | J51: 1
A52: HONI | B52: HONI Dx | C52: Other Services | D52: CCC Allocation Model | E52: 0.7039214025 | F52: 87586 | J52: 1
A53: HONI | B53: HONI Tx | C53: General Counsel & Secretary | D53: CCC Allocation Model | E53: 0.4335182495 | F53: 15461
A54: =A53 -> HONI | B54: =B53 -> HONI Tx | C54: Financial Services | D54: CCC Allocation Model | E54: 0.5627561898 | F54: 25496
A55: =A54 -> HONI | B55: HONI Tx | C55: Corporate Services | D55: CCC Allocation Model | E55: 0.513299847 | F55: 104754
A56: HONI | B56: HONI Tx | C56: Telecommunication Services | D56: CCC Allocation Model | E56: 0.5013636173 | F56: 9102
A57: HONI | B57: HONI Tx | C57: Other Services | D57: CCC Allocation Model | E57: 0.2853471762 | F57: 33607
A58: HONI | B58: Telecom | C58: General Counsel & Secretary | D58: CCC Allocation Model | E58: 0.003124193389 | F58: 101.926746
A59: =A58 -> HONI | B59: =B58 -> Telecom | C59: Financial Services | D59: CCC Allocation Model | E59: 0.01439134181 | F59: 535.7426054
A60: =A59 -> HONI | B60: Telecom | C60: Corporate Services | D60: CCC Allocation Model | E60: 0.001294629321 | F60: 270.7934474
A61: HONI | B61: Telecom | C61: Telecommunication Services | D61: CCC Allocation Model | E61: 0.015625 | F61: 284.3581944
A62: HONI | B62: Telecom | C62: Other Services | D62: CCC Allocation Model | E62: 0.008433724939 | F62: 964.3577546
A63: HONI | B63: Remotes | C63: General Counsel & Secretary | D63: CCC Allocation Model | E63: 0.01173086094 | F63: 382.7191007
A64: =A63 -> HONI | B64: =B63 -> Remotes | C64: Financial Services | D64: CCC Allocation Model | E64: 0.006646975903 | F64: 247.4451817
A65: =A64 -> HONI | B65: Remotes | C65: Corporate Services | D65: CCC Allocation Model | E65: 0.001284548782 | F65: 268.6849335
A66: HONI | B66: Remotes | C66: Telecommunication Services | D66: CCC Allocation Model | E66: 0.007738095238 | F66: 140.8250105
A67: HONI | B67: Remotes | C67: Other Services | D67: CCC Allocation Model | E67: 0.002297696392 | F67: 262.7310411
A68: HONI | B68: B2M | C68: General Counsel & Secretary | D68: CCC Allocation Model | E68: 0 | F68: 0.1
A69: =A68 -> HONI | B69: =B68 -> B2M | C69: Financial Services | D69: CCC Allocation Model | E69: 0 | F69: 0.1
A70: =A69 -> HONI | B70: B2M | C70: Corporate Services | D70: CCC Allocation Model | E70: 0 | F70: 0.1
A71: HONI | B71: B2M | C71: Telecommunication Services | D71: CCC Allocation Model | E71: 0 | F71: 0
A72: HONI | B72: B2M | C72: Other Services | D72: CCC Allocation Model | E72: 0 | F72: 0
A73: HONI | B73: Hydro One SSM | C73: General Counsel & Secretary | D73: CCC Allocation Model | E73: 0 | F73: 0
A74: =A73 -> HONI | B74: =B73 -> Hydro One SSM | C74: Financial Services | D74: CCC Allocation Model | E74: 0 | F74: 0
A75: =A74 -> HONI | B75: Hydro One SSM | C75: Corporate Services | D75: CCC Allocation Model | E75: 0 | F75: 0
A76: HONI | B76: Hydro One SSM | C76: Telecommunication Services | D76: CCC Allocation Model | E76: 0 | F76: 0
A77: HONI | B77: Hydro One SSM | C77: Other Services | D77: CCC Allocation Model | E77: 0 | F77: 0
A78: HONI | B78: Brampton | C78: General Counsel & Secretary | D78: CCC Allocation Model | E78: 0 | F78: 200
A79: =A78 -> HONI | B79: =B78 -> Brampton | C79: Financial Services | D79: CCC Allocation Model | E79: 0 | F79: 258
A80: =A79 -> HONI | B80: Brampton | C80: Corporate Services | D80: CCC Allocation Model | E80: 0 | F80: 34
A81: HONI | B81: Brampton | C81: Telecommunication Services | D81: CCC Allocation Model | E81: 0 | F81: 0
A82: HONI | B82: Brampton | C82: Other Services | D82: CCC Allocation Model | E82: 0 | F82: 0
A85: Legend | B85: "HOI" | C85: Hydro One Inc.
B86: "HONI" | C86: Hydro One Networks Inc.
B87: "Brampton" | C87: Hydro One Brampton Networks Inc.
B88: "B2M" | C88: B2M Limited Partnership
B89: "Telecom" | C89: Hydro One Telecom Inc.
B90: "Hydro One SSM" | C90: Hydro One Sault Ste. Marie LP (formerly Great Lakes Power Transmission LP)
B91: "Remotes" | C91: Hydro One Remote Communities Inc.
B92: "HONI Dx" | C92: Hydro One Distribution
B93: "HONI Tx" | C93: HONI's transmission business

Sheet 2016
A2: Appendix 2-N
A3: Shared Services and Corporate Cost Allocation
B5: Year: | C5: 2016
A7: Shared Services
A9: Name of Company | C9: Service Offered | D9: Pricing Methodology | E9: Price for the Service | F9: Cost for the Service
A10: From | B10: To
E11: $ | F11: $
A12: HOI | B12: All subs | C12: General Counsel & Secretary (including Corporate Exec Office) | D12: CCC Allocation Model | E12: 772.6977942 | F12: 772.6977942
A13: HOI | B13: All subs | C13: President/CEO/Chairman/Board | D13: CCC Allocation Model | E13: 5486.002582 | F13: 5486.002582
A14: HOI | B14: All subs | C14: Chief Financial Office Services (Including Strategic Financial Services) | D14: CCC Allocation Model | E14: 1278.576777 | F14: 1278.576777
A15: HONI | B15: All subs and HOI | C15: General Counsel & Secretary | D15: CCC Allocation Model | E15: 33693.74585 | F15: 33693.74585
A16: HONI | B16: All subs and HOI | C16: Financial Services | D16: CCC Allocation Model | E16: 40060.28779 | F16: 40060.28779
A17: HONI | B17: All subs and HOI | C17: Corporate Services | D17: CCC Allocation Model | E17: 205914.5784 | F17: 205914.5784
A18: HONI | B18: All subs and HOI | C18: Telecommunication Services | D18: CCC Allocation Model | E18: 425.1832049 | F18: 425.1832049
A19: HONI | B19: All subs and HOI | C19: Other Services | D19: CCC Allocation Model | E19: 1227.088796 | F19: 1227.088796
A20: Remotes Services | B20: HONI | C20: Metering and Lines Services | D20: CCC Allocation Model | E20: 148 | F20: 148
A22: Corporate Cost Allocation
A24: Name of Company | C24: Service Offered | D24: Pricing Methodology | E24: % of Corporate Costs Allocated | F24: Amount Allocated
A25: From | B25: To
E26: % | F26: $
A27: HOI | B27: HONI Dx | C27: General Counsel & Secretary | D27: CCC Allocation Model | E27: 0.1980159982 | F27: 230
A28: =A27 -> HOI | B28: =B27 -> HONI Dx | C28: President/CEO/Chairman /Board | D28: CCC Allocation Model | E28: 0.3840769533 | F28: 2681
A29: =A28 -> HOI | B29: =B28 -> HONI Dx | C29: Chief Financial Office Services | D29: CCC Allocation Model | E29: 0.7936638348 | F29: 913
A30: HOI | B30: HONI Tx | C30: =C27 -> General Counsel & Secretary | D30: CCC Allocation Model | E30: 0.4184164136 | F30: 486
A31: HOI | B31: =B30 -> HONI Tx | C31: President/CEO/Chairman /Board | D31: CCC Allocation Model | E31: 0.3878016832 | F31: 2707
A32: HOI | B32: =B31 -> HONI Tx | C32: Chief Financial Office Services | D32: CCC Allocation Model | E32: 0.2616569707 | F32: 301
A33: HOI | B33: Telecom | C33: General Counsel & Secretary | D33: CCC Allocation Model | E33: 0.0101010101 | F33: 11.7325486
A34: HOI | B34: =B33 -> Telecom | C34: President/CEO/Chairman /Board | D34: CCC Allocation Model | E34: 0.005911477196 | F34: 41.26430973
A35: HOI | B35: =B34 -> Telecom | C35: Chief Financial Office Services | D35: CCC Allocation Model | E35: 0.0225855929 | F35: 25.98158744
A36: HOI | B36: Remotes | C36: General Counsel & Secretary | D36: CCC Allocation Model | E36: 0.02424242424 | F36: 28.15811665
A37: HOI | B37: =B36 -> Remotes | C37: President/CEO/Chairman /Board | D37: CCC Allocation Model | E37: 0.002986597476 | F37: 20.84756131
A38: HOI | B38: =B37 -> Remotes | C38: Chief Financial Office Services | D38: CCC Allocation Model | E38: 0.01126068515 | F38: 12.95385413
A39: HOI | B39: B2M | C39: General Counsel & Secretary | D39: CCC Allocation Model | E39: 0 | F39: 0
A40: HOI | B40: =B39 -> B2M | C40: President/CEO/Chairman /Board | D40: CCC Allocation Model | E40: 0 | F40: 0
A41: HOI | B41: =B40 -> B2M | C41: Chief Financial Office Services | D41: CCC Allocation Model | E41: 0 | F41: 0
A42: HOI | B42: Hydro One SSM | C42: General Counsel & Secretary | D42: CCC Allocation Model | E42: 0 | F42: 0
A43: HOI | B43: =B42 -> Hydro One SSM | C43: President/CEO/Chairman /Board | D43: CCC Allocation Model | E43: 0 | F43: 0
A44: HOI | B44: =B43 -> Hydro One SSM | C44: Chief Financial Office Services | D44: CCC Allocation Model | E44: 0 | F44: 0
A45: HOI | B45: Brampton | C45: General Counsel & Secretary | D45: CCC Allocation Model | E45: 0.01446991486 | F45: 16.80712895
A46: HOI | B46: =B45 -> Brampton | C46: President/CEO/Chairman /Board | D46: CCC Allocation Model | E46: 0.005141661599 | F46: 35.89071052
A47: HOI | B47: =B46 -> Brampton | C47: Chief Financial Office Services | D47: CCC Allocation Model | E47: 0.02228981443 | F47: 25.6413354
A48: HONI | B48: HONI Dx | C48: General Counsel & Secretary | D48: CCC Allocation Model | E48: 0.5205025031 | F48: 17511 | J48: =E48+E53+E58+E63+E68+E73+E78 -> 0.9688758069
A49: =A48 -> HONI | B49: =B48 -> HONI Dx | C49: Financial Services | D49: CCC Allocation Model | E49: 0.411471924 | F49: 12701 | J49: =E49+E54+E59+E64+E69+E74+E79 -> 0.9952664315
A50: =A49 -> HONI | B50: HONI Dx | C50: Corporate Services | D50: CCC Allocation Model | E50: 0.4833286885 | F50: 91073 | J50: 0.9992077136
A51: HONI | B51: HONI Dx | C51: Telecommunication Services | D51: CCC Allocation Model | E51: 0.4752732875 | J51: 1
A52: HONI | B52: HONI Dx | C52: Other Services | D52: CCC Allocation Model | E52: 0.7039214025 | J52: 1
A53: HONI | B53: HONI Tx | C53: General Counsel & Secretary | D53: CCC Allocation Model | E53: 0.4335182495 | F53: 15698
A54: =A53 -> HONI | B54: =B53 -> HONI Tx | C54: Financial Services | D54: CCC Allocation Model | E54: 0.5627561898 | F54: 26576
A55: =A54 -> HONI | B55: HONI Tx | C55: Corporate Services | D55: CCC Allocation Model | E55: 0.513299847 | F55: 114302
A56: HONI | B56: HONI Tx | C56: Telecommunication Services | D56: CCC Allocation Model | E56: 0.5013636173
A57: HONI | B57: HONI Tx | C57: Other Services | D57: CCC Allocation Model | E57: 0.2853471762
A58: HONI | B58: Telecom | C58: General Counsel & Secretary | D58: CCC Allocation Model | E58: 0.003124193389 | F58: 101.926746
A59: =A58 -> HONI | B59: =B58 -> Telecom | C59: Financial Services | D59: CCC Allocation Model | E59: 0.01439134181 | F59: 535.7426054
A60: =A59 -> HONI | B60: Telecom | C60: Corporate Services | D60: CCC Allocation Model | E60: 0.001294629321 | F60: 270.7934474
A61: HONI | B61: Telecom | C61: Telecommunication Services | D61: CCC Allocation Model | E61: 0.015625 | F61: 284.3581944
A62: HONI | B62: Telecom | C62: Other Services | D62: CCC Allocation Model | E62: 0.008433724939 | F62: 964.3577546
A63: HONI | B63: Remotes | C63: General Counsel & Secretary | D63: CCC Allocation Model | E63: 0.01173086094 | F63: 382.7191007
A64: =A63 -> HONI | B64: =B63 -> Remotes | C64: Financial Services | D64: CCC Allocation Model | E64: 0.006646975903 | F64: 247.4451817
A65: =A64 -> HONI | B65: Remotes | C65: Corporate Services | D65: CCC Allocation Model | E65: 0.001284548782 | F65: 268.6849335
A66: HONI | B66: Remotes | C66: Telecommunication Services | D66: CCC Allocation Model | E66: 0.007738095238 | F66: 140.8250105
A67: HONI | B67: Remotes | C67: Other Services | D67: CCC Allocation Model | E67: 0.002297696392 | F67: 262.7310411
A68: HONI | B68: B2M | C68: General Counsel & Secretary | D68: CCC Allocation Model | E68: 0 | F68: 0.1
A69: =A68 -> HONI | B69: =B68 -> B2M | C69: Financial Services | D69: CCC Allocation Model | E69: 0 | F69: 0.1
A70: =A69 -> HONI | B70: B2M | C70: Corporate Services | D70: CCC Allocation Model | E70: 0 | F70: 0.1
A71: HONI | B71: B2M | C71: Telecommunication Services | D71: CCC Allocation Model | E71: 0 | F71: 0
A72: HONI | B72: B2M | C72: Other Services | D72: CCC Allocation Model | E72: 0 | F72: 0
A73: HONI | B73: Hydro One SSM | C73: General Counsel & Secretary | D73: CCC Allocation Model | E73: 0 | F73: 0
A74: =A73 -> HONI | B74: =B73 -> Hydro One SSM | C74: Financial Services | D74: CCC Allocation Model | E74: 0 | F74: 0
A75: =A74 -> HONI | B75: Hydro One SSM | C75: Corporate Services | D75: CCC Allocation Model | E75: 0 | F75: 0
A76: HONI | B76: Hydro One SSM | C76: Telecommunication Services | D76: CCC Allocation Model | E76: 0 | F76: 0
A77: HONI | B77: Hydro One SSM | C77: Other Services | D77: CCC Allocation Model | E77: 0 | F77: 0
A78: HONI | B78: Brampton | C78: General Counsel & Secretary | D78: CCC Allocation Model | E78: 0 | F78: 0
A79: =A78 -> HONI | B79: =B78 -> Brampton | C79: Financial Services | D79: CCC Allocation Model | E79: 0 | F79: 0
A80: =A79 -> HONI | B80: Brampton | C80: Corporate Services | D80: CCC Allocation Model | E80: 0 | F80: 0
A81: HONI | B81: Brampton | C81: Telecommunication Services | D81: CCC Allocation Model | E81: 0 | F81: 0
A82: HONI | B82: Brampton | C82: Other Services | D82: CCC Allocation Model | E82: 0 | F82: 0
A85: Legend | B85: "HOI" | C85: Hydro One Inc.
B86: "HONI" | C86: Hydro One Networks Inc.
B87: "Brampton" | C87: Hydro One Brampton Networks Inc.
B88: "B2M" | C88: B2M Limited Partnership
B89: "Telecom" | C89: Hydro One Telecom Inc.
B90: "Hydro One SSM" | C90: Hydro One Sault Ste. Marie LP (formerly Great Lakes Power Transmission LP)
B91: "Remotes" | C91: Hydro One Remote Communities Inc.
B92: "HONI Dx" | C92: Hydro One Distribution
B93: "HONI Tx" | C93: HONI's transmission business

Sheet 2017
A3: Appendix 2-N
A4: Shared Services and Corporate Cost Allocation
B6: Year: | C6: 2017
A8: Shared Services
A10: Name of Company | C10: Service Offered | D10: Pricing Methodology | E10: Price for the Service | F10: Cost for the Service
A11: From | B11: To
E12: $ | F12: $
A13: HOI | B13: All subs | C13: General Counsel & Secretary (including Corporate Exec Office) | D13: CCC Allocation Model | E13: 1161.522312 | F13: 1161.522312
A14: HOI | B14: All subs | C14: President/CEO/Chairman/Board | D14: CCC Allocation Model | E14: 6980.371972 | F14: 6980.371972
A15: HOI | B15: All subs | C15: Chief Financial Office Services (Including Strategic Financial Services) | D15: CCC Allocation Model | E15: 1150.361098 | F15: 1150.361098
A16: HONI | B16: All subs and HOI | C16: General Counsel & Secretary | D16: CCC Allocation Model | E16: 32624.97974 | F16: 32624.97974
A17: HONI | B17: All subs and HOI | C17: Financial Services | D17: CCC Allocation Model | E17: 37226.73067 | F17: 37226.73067
A18: HONI | B18: All subs and HOI | C18: Corporate Services | D18: CCC Allocation Model | E18: 209166.7807 | F18: 209166.7807
A19: HONI | B19: All subs and HOI | C19: Telecommunication Services | D19: CCC Allocation Model | E19: 18198.92444 | F19: 18198.92444
A20: HONI | B20: All subs and HOI | C20: Other Services | D20: CCC Allocation Model | E20: 114345.4122 | F20: 114345.4122
A21: Remotes Services | B21: HONI | C21: Metering and Lines Services | D21: CCC Allocation Model | E21: 148 | F21: 148
A23: Corporate Cost Allocation
A25: Name of Company | C25: Service Offered | D25: Pricing Methodology | E25: % of Corporate Costs Allocated | F25: Amount Allocated
A26: From | B26: To
E27: % | F27: $
A28: HOI | B28: HONI Dx | C28: General Counsel & Secretary | D28: CCC Allocation Model | E28: 0.4236067434 | F28: 496.9986706
A29: =A28 -> HOI | B29: =B28 -> HONI Dx | C29: President/CEO/Chairman /Board | D29: CCC Allocation Model | E29: 0.5083960473 | F29: 3986.637936
A30: =A29 -> HOI | B30: =B29 -> HONI Dx | C30: Chief Financial Office Services | D30: CCC Allocation Model | E30: 0.2426450884 | F30: 543.9069214
A31: HOI | B31: HONI Tx | C31: =C28 -> General Counsel & Secretary | D31: CCC Allocation Model | E31: 0.5288134717 | F31: 620.4329759
A32: HOI | B32: =B31 -> HONI Tx | C32: =C29 -> President/CEO/Chairman /Board | D32: CCC Allocation Model | E32: 0.3693917739 | F32: 2896.622165
A33: HOI | B33: =B32 -> HONI Tx | C33: =C30 -> Chief Financial Office Services | D33: CCC Allocation Model | E33: 0.233885089 | F33: 524.2707345
A34: HOI | B34: Telecom | C34: =C31 -> General Counsel & Secretary | D34: CCC Allocation Model | E34: 0.01 | F34: 11.7325486
A35: =A34 -> HOI | B35: =B34 -> Telecom | C35: =C32 -> President/CEO/Chairman /Board | D35: CCC Allocation Model | E35: 0.005262231559 | F35: 41.26430973
A36: HOI | B36: =B35 -> Telecom | C36: =C33 -> Chief Financial Office Services | D36: CCC Allocation Model | E36: 0.01159077837 | F36: 25.98158744
A37: HOI | B37: Remotes | C37: =C34 -> General Counsel & Secretary | D37: CCC Allocation Model | E37: 0.024 | F37: 28.15811665
A38: =A37 -> HOI | B38: =B37 -> Remotes | C38: =C35 -> President/CEO/Chairman /Board | D38: CCC Allocation Model | E38: 0.002658585489 | F38: 20.84756131
A39: HOI | B39: =B38 -> Remotes | C39: =C36 -> Chief Financial Office Services | D39: CCC Allocation Model | E39: 0.005778909878 | F39: 12.95385413
A40: HOI | B40: B2M | C40: =C37 -> General Counsel & Secretary | D40: CCC Allocation Model | E40: 0 | F40: 0
A41: HOI | B41: =B40 -> B2M | C41: =C38 -> President/CEO/Chairman /Board | D41: CCC Allocation Model | E41: 0 | F41: 0
A42: HOI | B42: =B41 -> B2M | C42: =C39 -> Chief Financial Office Services | D42: CCC Allocation Model | E42: 0 | F42: 0
A43: =A42 -> HOI | B43: Hydro One SSM | C43: =C40 -> General Counsel & Secretary | D43: CCC Allocation Model | E43: 0.003579784872 | F43: 4.2
A44: HOI | B44: =B43 -> Hydro One SSM | C44: =C41 -> President/CEO/Chairman /Board | D44: CCC Allocation Model | E44: 0.004463375391 | F44: 35
A45: HOI | B45: =B44 -> Hydro One SSM | C45: =C42 -> Chief Financial Office Services | D45: CCC Allocation Model | E45: 0.01929358567 | F45: 43.248
A46: =A45 -> HOI | B46: Brampton | C46: General Counsel & Secretary | D46: CCC Allocation Model | E46: 0 | F46: 0
A47: HOI | B47: =B46 -> Brampton | C47: President/CEO/Chairman /Board | D47: CCC Allocation Model | E47: 0 | F47: 0
A48: HOI | B48: =B47 -> Brampton | C48: Chief Financial Office Services | D48: CCC Allocation Model | E48: 0 | F48: 0
A49: HONI | B49: HONI Dx | C49: General Counsel & Secretary | D49: CCC Allocation Model | E49: 0.5205025031 | F49: 16981.38362 | J49: =E49+E54+E59+E64+E69+E74+E79 -> 0.9710618619
A50: =A49 -> HONI | B50: =B49 -> HONI Dx | C50: Financial Services | D50: CCC Allocation Model | E50: 0.411471924 | F50: 15317.75449 | J50: =E50+E55+E60+E65+E70+E75+E80 -> 0.9980526015
A51: =A50 -> HONI | B51: =B50 -> HONI Dx | C51: Corporate Services | D51: CCC Allocation Model | E51: 0.4833286885 | F51: 101096.3058 | J51: 1
A52: HONI | B52: HONI Dx | C52: Telecommunication Services | D52: CCC Allocation Model | E52: 0.4752732875 | F52: 8649.462648 | J52: 1
A53: HONI | B53: HONI Dx | C53: Other Services | D53: CCC Allocation Model | E53: 0.7039214025 | F53: 80490.18293 | J53: 1
A54: HONI | B54: HONI Tx | C54: General Counsel & Secretary | D54: CCC Allocation Model | E54: 0.4335151844 | F54: 14143.42411
A55: =A54 -> HONI | B55: =B54 -> HONI Tx | C55: Financial Services | D55: CCC Allocation Model | E55: 0.5627535036 | F55: 20949.47311
A56: =A55 -> HONI | B56: =B55 -> HONI Tx | C56: Corporate Services | D56: CCC Allocation Model | E56: 0.5132993689 | F56: 107365.1765
A57: HONI | B57: HONI Tx | C57: Telecommunication Services | D57: CCC Allocation Model | E57: 0.5013636173 | F57: 9124.278587
A58: HONI | B58: HONI Tx | C58: Other Services | D58: CCC Allocation Model | E58: 0.2853471762 | F58: 32628.14049
A59: HONI | B59: Telecom | C59: General Counsel & Secretary | D59: CCC Allocation Model | E59: 0.003124193389 | F59: 101.926746
A60: =A59 -> HONI | B60: =B59 -> Telecom | C60: Financial Services | D60: CCC Allocation Model | E60: 0.01439134181 | F60: 535.7426054
A61: =A60 -> HONI | B61: =B60 -> Telecom | C61: Corporate Services | D61: CCC Allocation Model | E61: 0.001294629321 | F61: 270.7934474
A62: HONI | B62: Telecom | C62: Telecommunication Services | D62: CCC Allocation Model | E62: 0.015625 | F62: 284.3581944
A63: HONI | B63: Telecom | C63: Other Services | D63: CCC Allocation Model | E63: 0.008433724939 | F63: 964.3577546
A64: HONI | B64: Remotes | C64: General Counsel & Secretary | D64: CCC Allocation Model | E64: 0.01173086094 | F64: 382.7191007
A65: =A64 -> HONI | B65: =B64 -> Remotes | C65: Financial Services | D65: CCC Allocation Model | E65: 0.006646975903 | F65: 247.4451817
A66: =A65 -> HONI | B66: =B65 -> Remotes | C66: Corporate Services | D66: CCC Allocation Model | E66: 0.001284548782 | F66: 268.6849335
A67: HONI | B67: Remotes | C67: Telecommunication Services | D67: CCC Allocation Model | E67: 0.007738095238 | F67: 140.8250105
A68: HONI | B68: Remotes | C68: Other Services | D68: CCC Allocation Model | E68: 0.002297696392 | F68: 262.7310411
A69: HONI | B69: B2M | C69: General Counsel & Secretary | D69: CCC Allocation Model | E69: 3.065136003e-06 | F69: 0.1
A70: =A69 -> HONI | B70: =B69 -> B2M | C70: Financial Services | D70: CCC Allocation Model | E70: 2.6862418e-06 | F70: 0.1
A71: =A70 -> HONI | B71: =B70 -> B2M | C71: Corporate Services | D71: CCC Allocation Model | E71: 4.780873887e-07 | F71: 0.1
A72: HONI | B72: B2M | C72: Telecommunication Services | D72: CCC Allocation Model | E72: 0 | F72: 0
A73: HONI | B73: B2M | C73: Other Services | D73: CCC Allocation Model | E73: 0 | F73: 0
A74: HONI | B74: Hydro One SSM | C74: General Counsel & Secretary | D74: CCC Allocation Model | E74: 0.002186054997 | F74: 71.32
A75: =A74 -> HONI | B75: =B74 -> Hydro One SSM | C75: Financial Services | D75: CCC Allocation Model | E75: 0.002786169995 | F75: 103.72
A76: =A75 -> HONI | B76: =B75 -> Hydro One SSM | C76: Corporate Services | D76: CCC Allocation Model | E76: 0.0007922864205 | F76: 165.72
A77: HONI | B77: Hydro One SSM | C77: Telecommunication Services | D77: CCC Allocation Model | E77: 0 | F77: 0
A78: HONI | B78: Hydro One SSM | C78: Other Services | D78: CCC Allocation Model | E78: 0 | F78: 0
A79: HONI | B79: Brampton | C79: General Counsel & Secretary | D79: CCC Allocation Model | E79: 0 | F79: 0
A80: =A79 -> HONI | B80: =B79 -> Brampton | C80: Financial Services | D80: CCC Allocation Model | E80: 0 | F80: 0
A81: =A80 -> HONI | B81: =B80 -> Brampton | C81: Corporate Services | D81: CCC Allocation Model | E81: 0 | F81: 0
A82: HONI | B82: Brampton | C82: Telecommunication Services | D82: CCC Allocation Model | E82: 0 | F82: 0
A83: HONI | B83: Brampton | C83: Other Services | D83: CCC Allocation Model | E83: 0 | F83: 0
A84: HONI | B84: HOI | C84: General Counsel & Secretary | D84: CCC Allocation Model | E84: 0.02893813806 | F84: 944.1061681
A85: =A84 -> HONI | B85: HOI | C85: Financial Services | D85: CCC Allocation Model | E85: 0.00194739847 | F85: 72.49527834
A86: =A85 -> HONI | B86: HOI | C86: Corporate Services | D86: CCC Allocation Model | E86: 0 | F86: 0
A87: HONI | B87: HOI | C87: Telecommunication Services | D87: CCC Allocation Model | E87: 0 | F87: 0
A88: HONI | B88: HOI | C88: Other Services | D88: CCC Allocation Model | E88: 0 | F88: 0
A90: Note: | B90: Exhibit C1, Tab 4, Schedule 1 provides a breakdown of Shared Service and Common Corporate Cost allocations, as derived by applying the Black & Veatch Review of Allocation of Common Corporate Costs for 2016. Exhibit C1, Tab 4, Schedule 1 provides the lines of business’ costs in a similar format to that found in past rate applications. For test years, the affiliate allocations outlined in this Attachment use the same cost base, but are grouped differently. As a result, a direct reconciliation is not possible by comparing the two Exhibits.
A91: Legend | B91: "HOI" | C91: Hydro One Inc.
B92: "HONI" | C92: Hydro One Networks Inc.
B93: "Brampton" | C93: Hydro One Brampton Networks Inc.
B94: "B2M" | C94: B2M Limited Partnership
B95: "Telecom" | C95: Hydro One Telecom Inc.
B96: "Hydro One SSM" | C96: Hydro One Sault Ste. Marie LP (formerly Great Lakes Power Transmission LP)
B97: "Remotes" | C97: Hydro One Remote Communities Inc.
B98: "HONI Dx" | C98: Hydro One Distribution
B99: "HONI Tx" | C99: HONI's transmission business

Sheet 2018
A3: Appendix 2-N
A4: Shared Services and Corporate Cost Allocation
B6: Year: | C6: 2018
A8: Shared Services
A10: Name of Company | C10: Service Offered | D10: Pricing Methodology | E10: Price for the Service | F10: Cost for the Service
A11: From | B11: To
E12: $ | F12: $
A13: HOI | B13: All subs | C13: General Counsel & Secretary (including Corporate Exec Office) | D13: CCC Allocation Model | E13: 1185.217931 | F13: 1185.217931
A14: HOI | B14: All subs | C14: President/CEO/Chairman/Board | D14: CCC Allocation Model | E14: 7044.626812 | F14: 7044.626812
A15: HOI | B15: All subs | C15: Chief Financial Office Services (Including Strategic Financial Services) | D15: CCC Allocation Model | E15: 1168.17555 | F15: 1168.17555
A16: HONI | B16: All subs and HOI | C16: General Counsel & Secretary | D16: CCC Allocation Model | E16: 33063.72027 | F16: 33063.72027
A17: HONI | B17: All subs and HOI | C17: Financial Services | D17: CCC Allocation Model | E17: 35619.93369 | F17: 35619.93369
A18: HONI | B18: All subs and HOI | C18: Corporate Services | D18: CCC Allocation Model | E18: 209862.3216 | F18: 209862.3216
A19: HONI | B19: All subs and HOI | C19: Telecommunication Services | D19: CCC Allocation Model | E19: 18247.84752 | F19: 18247.84752
A20: HONI | B20: All subs and HOI | C20: Other Services | D20: CCC Allocation Model | E20: 111690.5011 | F20: 111690.5011
A21: Remotes Services | B21: HONI | C21: Metering and Lines Services | D21: CCC Allocation Model | E21: 148 | F21: 148
A23: Corporate Cost Allocation
A25: Name of Company | C25: Service Offered | D25: Pricing Methodology | E25: % of Corporate Costs Allocated | F25: Amount Allocated
A26: From | B26: To
E27: % | F27: $
A28: HOI | B28: HONI Dx | C28: General Counsel & Secretary | D28: CCC Allocation Model | E28: 0.4236067434 | F28: 507.137685 | J28: =E28+E31+E34+E37+E40+E43+E46 -> 0.99
A29: =A28 -> HOI | B29: =B28 -> HONI Dx | C29: President/CEO/Chairman /Board | D29: CCC Allocation Model | E29: 0.5087856759 | F29: 4029.07682 | J29: =E29+E32+E35+E38+E41+E44+E47 -> 0.8895847297
A30: =A29 -> HOI | B30: =B29 -> HONI Dx | C30: Chief Financial Office Services | D30: CCC Allocation Model | E30: 0.2425440312 | F30: 552.3341226 | J30: 0.512975743
A31: HOI | B31: HONI Tx | C31: =C28 -> General Counsel & Secretary | D31: CCC Allocation Model | E31: 0.528885041 | F31: 633.1757922
A32: HOI | B32: =B31 -> HONI Tx | C32: President/CEO/Chairman /Board | D32: CCC Allocation Model | E32: 0.3684749282 | F32: 2917.955167
A33: HOI | B33: =B32 -> HONI Tx | C33: Chief Financial Office Services | D33: CCC Allocation Model | E33: 0.2340767652 | F33: 533.0520159
A34: HOI | B34: Telecom | C34: General Counsel & Secretary | D34: CCC Allocation Model | E34: 0.01 | F34: 11.9718983
A35: HOI | B35: =B34 -> Telecom | C35: President/CEO/Chairman /Board | D35: CCC Allocation Model | E35: 0.005253484732 | F35: 41.60237711
A36: HOI | B36: =B35 -> Telecom | C36: Chief Financial Office Services | D36: CCC Allocation Model | E36: 0.01158679969 | F36: 26.38607435
A37: HOI | B37: Remotes | C37: General Counsel & Secretary | D37: CCC Allocation Model | E37: 0.024 | F37: 28.73255591
A38: HOI | B38: =B37 -> Remotes | C38: President/CEO/Chairman /Board | D38: CCC Allocation Model | E38: 0.002650894233 | F38: 20.99244733
A39: HOI | B39: =B38 -> Remotes | C39: Chief Financial Office Services | D39: CCC Allocation Model | E39: 0.005776844601 | F39: 13.1553367
A40: HOI | B40: B2M | C40: General Counsel & Secretary | D40: CCC Allocation Model | E40: 0 | F40: 0
A41: HOI | B41: =B40 -> B2M | C41: President/CEO/Chairman /Board | D41: CCC Allocation Model | E41: 0 | F41: 0
A42: HOI | B42: =B41 -> B2M | C42: Chief Financial Office Services | D42: CCC Allocation Model | E42: 0 | F42: 0
A43: HOI | B43: Hydro One SSM | C43: General Counsel & Secretary | D43: CCC Allocation Model | E43: 0.003508215569 | F43: 4.2
A44: HOI | B44: =B43 -> Hydro One SSM | C44: President/CEO/Chairman /Board | D44: CCC Allocation Model | E44: 0.00441974662 | F44: 35
A45: HOI | B45: =B44 -> Hydro One SSM | C45: Chief Financial Office Services | D45: CCC Allocation Model | E45: 0.01899130224 | F45: 43.248
A46: HOI | B46: Brampton | C46: General Counsel & Secretary | D46: CCC Allocation Model | E46: 0 | F46: 0
A47: HOI | B47: =B46 -> Brampton | C47: President/CEO/Chairman /Board | D47: CCC Allocation Model | E47: 0 | F47: 0
A48: HOI | B48: =B47 -> Brampton | C48: Chief Financial Office Services | D48: CCC Allocation Model | E48: 0 | F48: 0
A49: HONI | B49: HONI Dx | C49: General Counsel & Secretary | D49: CCC Allocation Model | E49: 0.5213466963 | F49: 17237.66133 | J49: =E49+E54+E59+E64+E69+E74+E79+E84 -> 1
A50: =A49 -> HONI | B50: =B49 -> HONI Dx | C50: Financial Services | D50: CCC Allocation Model | E50: 0.4114450028 | F50: 14655.64372 | J50: =E50+E55+E60+E65+E70+E75+E80+E85 -> 1
A51: =A50 -> HONI | B51: HONI Dx | C51: Corporate Services | D51: CCC Allocation Model | E51: 0.4827619834 | F51: 101313.5506 | J51: =E51+E56+E61+E66+E71+E76+E81+E86 -> 1
A52: HONI | B52: HONI Dx | C52: Telecommunication Services | D52: CCC Allocation Model | E52: 0.4752732875 | F52: 8672.714481 | J52: =E52+E57+E62+E67+E72+E77+E82+E87 -> 1
A53: HONI | B53: HONI Dx | C53: Other Services | D53: CCC Allocation Model | E53: 0.7110327896 | F53: 79415.60857 | J53: =E53+E58+E63+E68+E73+E78+E83+E88 -> 1
A54: HONI | B54: HONI Tx | C54: General Counsel & Secretary | D54: CCC Allocation Model | E54: 0.433427363 | F54: 14330.72109
A55: =A54 -> HONI | B55: =B54 -> HONI Tx | C55: Financial Services | D55: CCC Allocation Model | E55: 0.5627237621 | F55: 20044.18309
A56: =A55 -> HONI | B56: HONI Tx | C56: Corporate Services | D56: CCC Allocation Model | E56: 0.5138912988 | F56: 107846.421
A57: HONI | B57: HONI Tx | C57: Telecommunication Services | D57: CCC Allocation Model | E57: 0.5013636173 | F57: 9148.80684
A58: HONI | B58: HONI Tx | C58: Other Services | D58: CCC Allocation Model | E58: 0.2782878996 | F58: 31082.11495
A59: HONI | B59: Telecom | C59: General Counsel & Secretary | D59: CCC Allocation Model | E59: 0.003122617329 | F59: 103.2453459
A60: =A59 -> HONI | B60: =B59 -> Telecom | C60: Financial Services | D60: CCC Allocation Model | E60: 0.01442421176 | F60: 513.7894664
A61: =A60 -> HONI | B61: Telecom | C61: Corporate Services | D61: CCC Allocation Model | E61: 0.001276079287 | F61: 267.8009618
A62: HONI | B62: Telecom | C62: Telecommunication Services | D62: CCC Allocation Model | E62: 0.015625 | F62: 285.1226175
A63: HONI | B63: Telecom | C63: Other Services | D63: CCC Allocation Model | E63: 0.008393285644 | F63: 937.4502795
A64: HONI | B64: Remotes | C64: General Counsel & Secretary | D64: CCC Allocation Model | E64: 0.01172033841 | F64: 387.5179908
A65: =A64 -> HONI | B65: =B64 -> Remotes | C65: Financial Services | D65: CCC Allocation Model | E65: 0.006616084928 | F65: 235.6645064
A66: =A65 -> HONI | B66: Remotes | C66: Corporate Services | D66: CCC Allocation Model | E66: 0.00128050145 | F66: 268.7290072
A67: HONI | B67: Remotes | C67: Telecommunication Services | D67: CCC Allocation Model | E67: 0.007738095238 | F67: 141.203582
A68: HONI | B68: Remotes | C68: Other Services | D68: CCC Allocation Model | E68: 0.002286025206 | F68: 255.3273008
A69: HONI | B69: B2M | C69: General Counsel & Secretary | D69: CCC Allocation Model | E69: 3.024463042e-06 | F69: 0.1
A70: =A69 -> HONI | B70: =B69 -> B2M | C70: Financial Services | D70: CCC Allocation Model | E70: 2.807416793e-06 | F70: 0.1
A71: =A70 -> HONI | B71: B2M | C71: Corporate Services | D71: CCC Allocation Model | E71: 4.765028769e-07 | F71: 0.1
A72: HONI | B72: B2M | C72: Telecommunication Services | D72: CCC Allocation Model | E72: 0 | F72: 0
A73: HONI | B73: B2M | C73: Other Services | D73: CCC Allocation Model | E73: 0 | F73: 0
A74: HONI | B74: Hydro One SSM | C74: General Counsel & Secretary | D74: CCC Allocation Model | E74: 0.002157047042 | F74: 71.32
A75: =A74 -> HONI | B75: =B74 -> Hydro One SSM | C75: Financial Services | D75: CCC Allocation Model | E75: 0.002911852698 | F75: 103.72
A76: =A75 -> HONI | B76: Hydro One SSM | C76: Corporate Services | D76: CCC Allocation Model | E76: 0.0007896605676 | F76: 165.72
A77: HONI | B77: Hydro One SSM | C77: Telecommunication Services | D77: CCC Allocation Model | E77: 0 | F77: 0
A78: HONI | B78: Hydro One SSM | C78: Other Services | D78: CCC Allocation Model | E78: 0 | F78: 0
A79: HONI | B79: Brampton | C79: General Counsel & Secretary | D79: CCC Allocation Model | E79: 0 | F79: 0
A80: =A79 -> HONI | B80: =B79 -> Brampton | C80: Financial Services | D80: CCC Allocation Model | E80: 0 | F80: 0
A81: =A80 -> HONI | B81: Brampton | C81: Corporate Services | D81: CCC Allocation Model | E81: 0 | F81: 0
A82: HONI | B82: Brampton | C82: Telecommunication Services | D82: CCC Allocation Model | E82: 0 | F82: 0
A83: HONI | B83: Brampton | C83: Other Services | D83: CCC Allocation Model | E83: 0 | F83: 0
A84: HONI | B84: HOI | C84: General Counsel & Secretary | D84: CCC Allocation Model | E84: 0.0282229135 | F84: 933.1545171
A85: =A84 -> HONI | B85: HOI | C85: Financial Services | D85: CCC Allocation Model | E85: 0.0018762783 | F85: 66.83290862
A86: =A85 -> HONI | B86: HOI | C86: Corporate Services | D86: CCC Allocation Model | E86: 0 | F86: 0
A87: =A86 -> HONI | B87: HOI | C87: Telecommunication Services | D87: CCC Allocation Model | E87: 0 | F87: 0
A88: =A87 -> HONI | B88: HOI | C88: Other Services | D88: CCC Allocation Model | E88: 0 | F88: 0
A90: Note: | B90: Exhibit C1, Tab 4, Schedule 1 provides a breakdown of Shared Service and Common Corporate Cost allocations, as derived by applying the Black & Veatch Review of Allocation of Common Corporate Costs for 2016. Exhibit C1, Tab 4, Schedule 1 provides the lines of business’ costs in a similar format to that found in past rate applications. For test years, the affiliate allocations outlined in this Attachment use the same cost base, but are grouped differently. As a result, a direct reconciliation is not possible by comparing the two Exhibits.
A92: Legend | B92: "HOI" | C92: Hydro One Inc.
B93: "HONI" | C93: Hydro One Networks Inc.
B94: "Brampton" | C94: Hydro One Brampton Networks Inc.
B95: "B2M" | C95: B2M Limited Partnership
B96: "Telecom" | C96: Hydro One Telecom Inc.
B97: "Hydro One SSM" | C97: Hydro One Sault Ste. Marie LP (formerly Great Lakes Power Transmission LP)
B98: "Remotes" | C98: Hydro One Remote Communities Inc.
B99: "HONI Dx" | C99: Hydro One Distribution
B100: "HONI Tx" | C100: HONI's transmission business
